bitfinex/quotes_SOLUSD_20250108
["timestamp","ask_amount","ask_price","bid_price","bid_amount"]
[1736317985062,343.63068276,195.05,195.04,7.78544358]
[1736317985278,40.0,195.01,195.0,5.295861]
[1736317985503,63.776884,195.01,195.0,5.295861]
[1736317985711,82.32755768,195.01,195.0,5.295861]
[1736317985886,0.95175281,194.86,194.78,5.0]
[1736317986181,0.95175281,194.84,194.78,5.0]
[1736317986360,0.95175281,194.82,194.77,30.62821838]
[1736317986561,4.49175281,194.83,194.77,25.62821838]
[1736317986762,0.95175281,194.88,194.87,4.5]
[1736317986969,30.0,194.94,194.86,4.5]
[1736317987182,46.20873303,194.96,194.81,4.5]
[1736317987383,16.20873303,194.96,194.84,4.5]
[1736317987574,16.20873303,194.96,194.88,28.276884]
[1736317987892,16.20873303,194.96,194.87,25.32519711]
[1736317988069,16.20873303,194.96,194.91,4.5]
[1736317988584,16.20873303,194.96,194.91,24.5]
[1736317988883,0.5,195.08,194.97,6.2272]
[1736317989105,30.5,195.13,195.0,28.276884]
[1736317989261,3.8,195.14,195.0,28.276884]
[1736317989262,3.8,195.14,195.04,4.5]
[1736317989464,45.02621142,195.17,195.09,4.5]
[1736317989686,15.02621142,195.17,195.07,24.5]
[1736317989891,15.02621142,195.17,195.1,4.5]
[1736317990202,15.02621142,195.17,195.13,23.776884]
[1736317990585,15.02621142,195.17,195.15,23.776884]
[1736317990775,15.02621142,195.17,195.15,28.276884]
[1736317990978,6.69301142,195.17,195.16,60.11738111]
[1736317991176,0.5,195.31,195.19,4.5]
[1736317991177,30.0,195.31,195.19,4.5]
[1736317991399,0.5,195.31,195.2,28.276884]
[1736317991737,20.0,195.3,195.2,28.276884]
[1736317991868,20.0,195.3,195.2,23.776884]
[1736317991869,20.5,195.3,195.2,23.776884]
[1736317992069,0.5,195.24,195.21,0.76815029]
[1736317992271,0.5,195.23,195.13,0.76810016]
[1736317992495,0.5,195.23,195.11,9.5]
[1736317992496,0.5,195.21,195.12,0.76830384]
[1736317992775,20.0,195.26,195.09,5.0]
[1736317992776,0.12549,195.2,195.11,4.5]
[1736317992972,0.12549,195.2,195.12,23.776884]
[1736317993175,0.5,195.29,195.15,23.776884]
[1736317993387,0.5,195.3,195.18,23.776884]
[1736317993589,0.5,195.34,195.21,28.276884]
[1736317993799,4.06,195.35,195.23,23.776884]
[1736317994005,4.06,195.35,195.25,23.776884]
[1736317994224,0.5,195.27,195.25,23.776884]
[1736317994411,0.5,195.25,195.15,4.5]
[1736317994603,0.5,195.21,195.09,0.76842218]
[1736317994787,0.12549,195.21,195.11,4.5]
[1736317994976,0.12549,195.21,195.14,24.5]
[1736317995171,0.12549,195.21,195.16,45.51455016]
[1736317995377,4.06,195.27,195.19,23.776884]
[1736317995589,0.5,195.34,195.21,28.276884]
[1736317995810,0.5,195.3,195.21,23.776884]
[1736317996008,0.12549,195.29,195.19,4.5]
[1736317996209,4.56,195.36,195.23,23.776884]
[1736317996533,0.5,195.33,195.23,23.776884]
[1736317996773,0.5,195.33,195.21,0.76801272]
[1736317997027,0.12549,195.3,195.18,41.01455016]
[1736317997230,14.87234125,195.38,195.23,50.51455016]
[1736317997393,14.37234125,195.38,195.26,64.79143416]
[1736317997591,14.37234125,195.38,195.25,45.51455016]
[1736317997592,0.5,195.36,195.25,45.51455016]
[1736317997812,14.37234125,195.38,195.25,45.51455016]
[1736317997813,14.37234125,195.38,195.26,24.54483594]
[1736317998027,14.37234125,195.38,195.26,29.04483594]
[1736317998327,0.12549,195.37,195.26,29.04483594]
[1736317998528,0.12549,195.37,195.28,23.776884]
[1736317999026,0.12549,195.37,195.3,23.776884]
[1736317999428,0.12549,195.37,195.28,0.76785442]
[1736317999732,0.12549,195.37,195.28,23.776884]
[1736318000031,0.12549,195.37,195.3,23.776884]
[1736318000537,14.37234125,195.38,195.34,23.776884]
[1736318000702,4.56,195.47,195.34,23.776884]
[1736318000906,0.5,195.5,195.36,28.276884]
[1736318001121,0.5,195.5,195.39,23.776884]
[1736318001316,0.5,195.52,195.41,23.776884]
[1736318001609,0.5,195.54,195.44,64.79143416]
[1736318001814,4.06,195.56,195.38,5.0]
[1736318001815,0.5,195.5,195.38,41.01455016]
[1736318002015,20.5,195.5,195.37,45.51455016]
[1736318002225,0.5,195.5,195.39,23.776884]
[1736318002424,0.5,195.53,195.41,23.776884]
[1736318002628,0.5,195.54,195.43,23.776884]
[1736318002830,0.5,195.59,195.47,23.776884]
[1736318003026,0.5,195.59,195.49,41.01455016]
[1736318003221,0.5,195.59,195.5,64.79143416]
[1736318003550,0.5,195.59,195.52,23.776884]
[1736318003711,0.12549,195.58,195.5,41.01455016]
[1736318003911,20.0,195.58,195.51,23.776884]
[1736318004226,0.12549,195.57,195.46,41.01455016]
[1736318004431,0.12549,195.57,195.47,41.78169037]
[1736318004736,0.12549,195.58,195.48,23.776884]
[1736318004914,20.12549,195.58,195.48,23.776884]
[1736318005119,20.12549,195.58,195.48,69.29143416]
[1736318005310,20.12549,195.58,195.5,23.776884]
[1736318005922,20.12549,195.58,195.5,64.79143416]
[1736318006241,4.06,195.64,195.53,64.79143416]
[1736318006420,0.5,195.71,195.59,4.5]
[1736318006620,0.5,195.73,195.62,23.776884]
[1736318007247,0.5,195.7,195.63,23.776884]
[1736318007448,0.12549,195.63,195.52,0.7665229]
[1736318007758,0.12549,195.63,195.52,4.5]
[1736318008053,20.0,195.68,195.58,23.776884]
[1736318008258,0.12549,195.67,195.58,23.776884]
[1736318008424,0.12549,195.67,195.6,23.776884]
[1736318008758,0.12549,195.69,195.62,23.776884]
[1736318009430,0.5,195.72,195.62,23.776884]
[1736318009431,0.12549,195.71,195.62,23.776884]
[1736318009834,20.5,195.73,195.62,23.776884]
[1736318010034,0.5,195.73,195.62,23.776884]
[1736318010231,0.5,195.79,195.64,28.276884]
[1736318010422,0.5,195.78,195.66,23.776884]
[1736318010635,0.12549,195.77,195.68,23.776884]
[1736318010864,4.04,195.8,195.7,23.776884]
[1736318011137,0.5,195.81,195.7,69.29143416]
[1736318011442,0.12549,195.8,195.7,23.776884]
[1736318011752,0.12549,195.8,195.7,69.29143416]
[1736318012045,0.5,195.84,195.72,64.79143416]
[1736318012244,0.5,195.85,195.74,64.79143416]
[1736318012443,1.5633,195.88,195.74,64.79143416]
[1736318012444,0.5,195.86,195.76,23.776884]
[1736318012746,0.5,195.85,195.76,23.776884]
[1736318012936,52.8304,195.92,195.78,23.776884]
[1736318013128,0.5,195.86,195.78,23.776884]
[1736318013330,0.5,195.79,195.72,0.76593335]
[1736318013530,0.5,195.79,195.68,4.5]
[1736318013727,0.12549,195.78,195.68,4.5]
[1736318014044,0.12549,195.78,195.69,0.76625473]
[1736318014368,0.12549,195.76,195.65,4.5]
[1736318014648,0.12549,195.76,195.67,23.776884]
[1736318014837,20.5,195.79,195.69,23.776884]
[1736318015036,0.62549,195.78,195.68,23.776884]
[1736318015431,0.12549,195.78,195.68,23.776884]
[1736318015646,20.5,195.77,195.65,41.7808033]
[1736318015948,0.12549,195.74,195.63,0.76625314]
[1736318016148,0.12549,195.74,195.63,5.26625314]
[1736318016355,0.5,195.77,195.65,23.902374]
[1736318016532,0.5,195.77,195.67,23.776884]
[1736318016733,0.12549,195.76,195.69,23.776884]
[1736318017033,0.12549,195.76,195.71,23.776884]
[1736318017254,4.54,195.81,195.71,23.776884]
[1736318017432,0.12549,195.8,195.71,23.776884]
[1736318017838,0.12549,195.8,195.73,23.776884]
[1736318018162,0.12549,195.82,195.73,24.54301258]
[1736318018350,0.12549,195.82,195.75,23.776884]
[1736318018530,0.5,195.87,195.77,23.776884]
[1736318018729,4.04,195.88,195.79,23.776884]
[1736318018942,4.04,195.91,195.77,41.78035567]
[1736318019149,4.04,195.91,195.79,41.01455016]
[1736318019340,4.04,195.91,195.81,64.79143416]
[1736318019548,4.04,195.91,195.83,23.776884]
[1736318019748,4.04,195.91,195.81,0.76568216]
[1736318020055,0.12549,195.89,195.77,41.01455016]
[1736318020250,0.12549,195.89,195.77,0.76590135]
[1736318020453,0.12549,195.84,195.72,45.51455016]
[1736318020657,0.12549,195.82,195.71,0.76597993]
[1736318020957,20.0,195.85,195.72,4.5]
[1736318021159,0.5,195.83,195.73,23.776884]
[1736318021359,0.12549,195.86,195.73,23.776884]
[1736318021555,0.12549,195.83,195.73,4.5]
[1736318021865,0.12549,195.78,195.67,4.5]
[1736318022255,0.12549,195.78,195.68,5.26628339]
[1736318022571,0.5,195.81,195.68,0.76628339]
[1736318022872,0.12549,195.8,195.68,0.76628339]
[1736318023070,0.12549,195.8,195.69,23.776884]
[1736318024072,0.12549,195.77,195.66,4.5]
[1736318024374,0.62549,195.77,195.66,0.76628998]
[1736318024574,0.12549,195.75,195.64,5.26635546]
[1736318024753,0.12549,195.75,195.64,46.28090562]
[1736318024944,0.12549,195.75,195.64,0.76635546]
[1736318025148,0.12549,195.75,195.61,0.76634671]
[1736318025149,0.12549,195.71,195.61,0.76634671]
[1736318025556,0.12549,195.71,195.62,23.776884]
[1736318025766,0.12549,195.71,195.61,0.76634671]
[1736318025961,0.12549,195.69,195.58,0.76650851]
[1736318026168,0.62549,195.67,195.56,0.76660689]
[1736318026675,0.12549,195.65,195.57,41.78129061]
[1736318026869,0.12549,195.65,195.59,0.12549]
[1736318027068,0.5,195.7,195.6,23.776884]
[1736318027268,0.12549,195.69,195.6,23.776884]
[1736318027470,0.62549,195.69,195.6,23.776884]
[1736318027673,0.12549,195.69,195.6,23.776884]
[1736318027977,0.12549,195.68,195.6,23.776884]
[1736318028163,0.12549,195.68,195.62,23.776884]
[1736318028475,4.48,195.73,195.62,23.776884]
[1736318028659,0.5,195.8,195.66,23.776884]
[1736318028861,0.5,195.8,195.68,23.776884]
[1736318028862,0.5,195.77,195.68,23.776884]
[1736318029070,0.12549,195.76,195.64,41.01455016]
[1736318029256,0.12549,195.76,195.66,23.776884]
[1736318029458,0.62549,195.76,195.66,23.776884]
[1736318029761,0.62549,195.76,195.68,23.776884]
[1736318029959,0.12549,195.74,195.65,0.76629218]
[1736318030272,0.12549,195.74,195.66,23.776884]
[1736318030475,0.5,195.78,195.68,23.776884]
[1736318030666,20.5,195.79,195.7,23.776884]
[1736318031184,0.12549,195.78,195.69,0.76619865]
[1736318031360,0.12549,195.78,195.7,23.776884]
[1736318031561,0.12549,195.76,195.7,23.776884]
[1736318031759,0.12549,195.77,195.7,23.776884]
[1736318031960,0.12549,195.77,195.72,23.776884]
[1736318032170,0.5,195.84,195.74,23.776884]
[1736318032469,0.12549,195.81,195.71,0.76604112]
[1736318032666,0.12549,195.79,195.71,0.76604112]
[1736318032980,0.12549,195.79,195.72,23.776884]
[1736318033167,0.12549,195.8,195.72,23.776884]
[1736318033372,0.62549,195.8,195.72,23.776884]
[1736318033567,0.62549,195.8,195.69,0.76616078]
[1736318033897,0.62549,195.8,195.7,23.776884]
[1736318034186,0.12549,195.76,195.7,23.776884]
[1736318034361,0.12549,195.76,195.69,23.776884]
[1736318034559,0.12549,195.77,195.69,23.776884]
[1736318035067,0.12549,195.78,195.69,0.76622141]
[1736318036583,0.12549,195.79,195.69,0.76622141]
[1736318036774,0.62549,195.79,195.69,0.76622141]
[1736318037288,0.12549,195.8,195.69,0.76622141]
[1736318037475,0.12549,195.8,195.7,0.12549]
[1736318037687,0.12549,195.8,195.72,23.776884]
[1736318037989,4.48,195.83,195.74,23.776884]
[1736318038684,20.62549,195.82,195.74,23.776884]
[1736318038987,20.62549,195.82,195.73,23.776884]
[1736318039189,0.12549,195.78,195.67,0.76613264]
[1736318039370,0.12549,195.78,195.68,4.5]
[1736318039570,0.12549,195.78,195.69,24.54309665]
[1736318039771,0.5,195.81,195.69,24.54309665]
[1736318039969,0.5,195.79,195.69,24.54309665]
[1736318040186,0.12549,195.78,195.69,24.54309665]
[1736318040887,0.5,195.78,195.66,0.76611657]
[1736318041094,0.12549,195.76,195.66,5.26611657]
[1736318041264,0.12549,195.76,195.67,23.776884]
[1736318041464,0.12549,195.76,195.66,5.26611657]
[1736318041465,0.62549,195.76,195.69,23.776884]
[1736318041688,0.62549,195.76,195.67,23.776884]
[1736318041987,0.12549,195.74,195.64,0.76632787]
[1736318042371,0.12549,195.69,195.61,0.76641184]
[1736318042564,0.12549,195.65,195.57,0.7665223]
[1736318042770,0.62549,195.65,195.53,0.76666802]
[1736318043170,0.12549,195.64,195.53,0.76666802]
[1736318043382,0.12549,195.61,195.5,0.76684706]
[1736318043695,0.12549,195.53,195.44,0.7669501]
[1736318044066,0.12549,195.53,195.43,0.76719729]
[1736318044276,0.62549,195.51,195.39,0.76721712]
[1736318044489,0.12549,195.47,195.36,0.7673574]
[1736318044690,0.62549,195.45,195.34,0.76752563]
[1736318044993,0.12549,195.42,195.31,0.76755796]
[1736318045179,0.62549,195.42,195.31,0.76755796]
[1736318045369,0.12549,195.38,195.27,0.76772431]
[1736318045692,0.12549,195.37,195.27,0.76772431]
[1736318045986,20.0,195.42,195.27,0.76772431]
[1736318045987,0.5,195.42,195.3,41.01455016]
[1736318046196,0.12549,195.41,195.3,0.76773394]
[1736318046571,0.5,195.45,195.31,41.01455016]
[1736318046780,20.0,195.49,195.35,41.01455016]
[1736318047073,0.12549,195.44,195.36,24.66982708]
[1736318047478,20.5,195.5,195.36,24.66982708]
[1736318047673,20.5,195.5,195.38,41.01455016]
[1736318047881,0.5,195.54,195.4,64.79143416]
[1736318048114,0.12549,195.5,195.42,23.776884]
[1736318048280,0.12549,195.5,195.4,0.7673243]
[1736318048462,0.12549,195.48,195.4,0.7673243]
[1736318048864,0.12549,195.48,195.34,4.5]
[1736318048865,0.12549,195.48,195.39,0.76736791]
[1736318049410,0.5,195.5,195.4,23.776884]
[1736318049596,0.5,195.5,195.38,0.76730519]
[1736318049771,0.5,195.51,195.38,41.78185535]
[1736318049973,19.5,195.53,195.39,23.902374]
[1736318050192,13.21429775,195.56,195.41,0.12549]
[1736318050371,0.12549,195.55,195.4,41.78177232]
[1736318050674,0.12549,195.55,195.38,0.76729417]
[1736318050874,0.12549,195.55,195.39,23.902374]
[1736318051069,30.0,195.54,195.36,0.76739544]
[1736318051272,30.0,195.54,195.32,46.01455016]
[1736318051273,30.0,195.51,195.32,0.76750576]
[1736318051501,0.12549,195.46,195.29,0.76764873]
[1736318051790,0.12549,195.46,195.29,20.0]
[1736318051999,20.0,195.42,195.27,0.76770102]
[1736318052203,20.0,195.4,195.26,0.76780197]
[1736318052376,20.0,195.4,195.27,20.0]
[1736318052577,20.0,195.4,195.28,20.76789246]
[1736318052796,20.0,195.4,195.28,0.76789246]
[1736318052998,3.76,195.41,195.29,64.91692416]
[1736318053304,3.76,195.41,195.28,5.76789246]
[1736318053305,1.6414,195.43,195.31,23.902374]
[1736318053487,1.6414,195.43,195.33,23.776884]
[1736318053693,1.6056,195.52,195.36,0.12549]
[1736318053878,5.3656,195.52,195.37,23.776884]
[1736318054203,0.12549,195.51,195.37,23.776884]
[1736318054398,0.12549,195.51,195.38,0.12549]
[1736318054586,0.12549,195.51,195.39,23.776884]
[1736318054785,0.12549,195.51,195.41,23.776884]
[1736318055808,1.6056,195.52,195.43,23.776884]
[1736318056178,0.12549,195.51,195.4,20.0]
[1736318056587,0.12549,195.51,195.41,23.776884]
[1736318056785,0.12549,195.51,195.38,0.89285413]
[1736318057287,20.0,195.5,195.39,23.776884]
[1736318057498,20.0,195.5,195.37,23.776884]
[1736318057699,0.12549,195.51,195.39,23.776884]
[1736318058185,0.12549,195.47,195.37,23.776884]
[1736318058391,0.12549,195.45,195.3,0.76753347]
[1736318058784,0.12549,195.45,195.34,20.0]
[1736318058983,20.0,195.48,195.35,23.902374]
[1736318059210,1.6056,195.52,195.38,41.01455016]
[1736318059501,1.6056,195.52,195.36,41.78213472]
[1736318059502,0.12549,195.49,195.36,41.78213472]
[1736318059705,0.12549,195.49,195.39,23.902374]
[1736318059910,1.6056,195.52,195.41,20.0]
[1736318060084,0.12549,195.51,195.42,23.776884]
[1736318060289,0.12549,195.49,195.42,23.776884]
[1736318060489,0.12549,195.49,195.38,44.77455016]
[1736318060490,0.12549,195.49,195.39,24.5443382]
[1736318060907,0.12549,195.51,195.39,24.5443382]
[1736318062525,0.12549,195.51,195.43,0.12549]
[1736318062683,13.21429775,195.56,195.44,61.01455016]
[1736318062989,0.12549,195.55,195.46,64.91692416]
[1736318063186,1.6083,195.62,195.5,23.776884]
[1736318063406,1.6083,195.62,195.53,41.14004016]
[1736318063613,6.3987,195.64,195.55,0.12549]
[1736318063790,20.0,195.68,195.56,0.76674912]
[1736318063987,1.6083,195.7,195.57,23.776884]
[1736318064187,1.6083,195.7,195.61,23.776884]
[1736318064407,1.6083,195.7,195.59,0.76651092]
[1736318064606,1.6083,195.7,195.6,23.776884]
[1736318065107,0.12549,195.69,195.53,3.76]
[1736318065288,0.12549,195.64,195.53,3.76]
[1736318065640,20.0,195.63,195.5,0.76688069]
[1736318065791,20.0,195.63,195.51,23.776884]
[1736318065985,20.0,195.65,195.52,23.902374]
[1736318066214,20.0,195.65,195.54,23.902374]
[1736318066489,0.12549,195.64,195.54,23.902374]
[1736318066686,0.12549,195.64,195.56,23.776884]
[1736318067107,0.12549,195.66,195.56,23.776884]
[1736318067508,1.6083,195.7,195.58,23.776884]
[1736318067915,0.12549,195.69,195.6,23.776884]
[1736318068324,0.12549,195.69,195.57,41.78119104]
[1736318068325,0.12549,195.67,195.58,23.776884]
[1736318068724,0.12549,195.63,195.49,41.01455016]
[1736318068924,0.12549,195.63,195.52,20.0]
[1736318069205,0.12549,195.63,195.5,0.7669392]
[1736318069605,0.12549,195.63,195.51,41.01455016]
[1736318069810,0.12549,195.63,195.52,41.01455016]
[1736318070014,0.12549,195.63,195.53,23.776884]
[1736318070218,0.12549,195.63,195.52,41.01455016]
[1736318070415,0.12549,195.63,195.53,0.12549]
[1736318070623,0.12549,195.63,195.55,23.776884]
[1736318070833,0.12549,195.63,195.56,41.01455016]
[1736318071030,0.12549,195.63,195.59,23.776884]
[1736318071538,0.12549,195.63,195.55,64.79143416]
[1736318071735,0.12549,195.63,195.57,64.79143416]
[1736318071935,0.12549,195.63,195.57,41.01455016]
[1736318072133,0.12549,195.63,195.56,41.78122022]
[1736318072432,0.12549,195.63,195.59,23.776884]
[1736318072738,0.12549,195.63,195.61,23.776884]
[1736318073314,0.12549,195.63,195.57,41.01455016]
[1736318073315,0.12549,195.63,195.58,23.902374]
[1736318073516,0.12549,195.63,195.6,23.776884]
[1736318074336,0.12549,195.63,195.61,0.76664314]
[1736318074515,0.12549,195.63,195.59,23.776884]
[1736318074719,0.12549,195.63,195.59,65.55806839]
[1736318075040,5.12549,195.63,195.59,23.776884]
[1736318075831,5.12549,195.63,195.61,23.776884]
[1736318077314,5.0,195.63,195.61,23.776884]
[1736318077734,5.0,195.63,195.62,65.68349142]
[1736318078517,5.0,195.63,195.62,23.776884]
[1736318079736,5.0,195.63,195.62,23.902374]
[1736318080047,5.0,195.63,195.62,64.91692416]
[1736318080339,5.0,195.64,195.63,23.902374]
[1736318080548,5.0,195.64,195.63,41.14004016]
[1736318080842,5.0,195.64,195.63,64.91692416]
[1736318081037,5.0,195.64,195.63,59.91692416]
[1736318081249,5.0,195.64,195.63,23.776884]
[1736318081431,5.12549,195.64,195.63,23.776884]
[1736318081748,5.0,195.64,195.63,23.776884]
[1736318082042,5.0,195.64,195.63,65.55785683]
[1736318082431,5.12549,195.64,195.63,23.776884]
[1736318082619,5.0,195.64,195.63,65.55796701]
[1736318083046,5.0,195.64,195.63,65.68345701]
[1736318083734,1.508,195.77,195.68,20.0]
[1736318084045,6.3145,195.82,195.74,23.776884]
[1736318084356,6.3145,195.82,195.74,0.12549]
[1736318084357,0.12549,195.81,195.74,0.12549]
[1736318084723,1.5985,195.84,195.76,0.12549]
[1736318085346,0.12549,195.83,195.75,24.54292028]
[1736318085556,13.35597556,195.88,195.8,41.01455016]
[1736318085853,6.1953,195.89,195.81,23.776884]
[1736318086031,20.0,195.86,195.79,23.902374]
[1736318086242,0.12549,195.88,195.79,64.91692416]
[1736318086540,0.12549,195.88,195.81,23.902374]
[1736318086738,0.12549,195.85,195.75,41.01455016]
[1736318086943,0.12549,195.85,195.74,4.42592642]
[1736318087142,20.12549,195.85,195.7,41.01455016]
[1736318087456,0.12549,195.82,195.69,41.01455016]
[1736318087662,0.12549,195.82,195.68,41.780578]
[1736318087834,0.12549,195.82,195.69,23.902374]
[1736318088028,0.12549,195.82,195.69,64.91692416]
[1736318088225,0.12549,195.82,195.7,41.78073796]
[1736318088447,6.1953,195.89,195.75,23.776884]
[1736318088748,6.1953,195.89,195.76,0.12549]
[1736318088921,0.12549,195.88,195.76,0.12549]
[1736318089117,20.0,195.86,195.76,0.12549]
[1736318089320,0.12549,195.85,195.76,0.12549]
[1736318089650,0.12549,195.85,195.76,23.902374]
[1736318089958,0.12549,195.83,195.71,41.01455016]
[1736318090120,0.12549,195.83,195.72,0.76617244]
[1736318090441,0.12549,195.83,195.73,23.776884]
[1736318090632,20.12549,195.85,195.73,23.776884]
[1736318090828,20.12549,195.85,195.74,0.12549]
[1736318092737,20.12549,195.85,195.76,0.12549]
[1736318092942,20.12549,195.85,195.77,23.776884]
[1736318093138,20.12549,195.85,195.77,24.54281909]
[1736318093643,20.12549,195.85,195.77,23.776884]
[1736318093839,20.12549,195.85,195.77,24.54280287]
[1736318094366,25.12549,195.85,195.78,0.12549]
[1736318094926,25.12549,195.85,195.77,24.54280287]
[1736318095136,25.12549,195.85,195.62,1.5037]
[1736318095344,55.12549,195.85,195.68,41.01455016]
[1736318095746,25.12549,195.85,195.69,65.68316065]
[1736318095944,55.12549,195.85,195.69,41.78078665]
[1736318096150,55.12549,195.85,195.68,41.01455016]
[1736318096651,55.12549,195.85,195.69,0.76624106]
[1736318097059,55.12549,195.85,195.68,41.7807979]
[1736318097252,0.12549,195.75,195.64,41.78086981]
[1736318097557,0.12549,195.75,195.64,0.76631965]
[1736318098059,0.12549,195.75,195.65,23.902374]
[1736318098655,0.12549,195.75,195.61,3.66]
[1736318098656,0.12549,195.75,195.67,41.01455016]
[1736318098853,0.12549,195.75,195.68,0.76629799]
[1736318099046,0.12549,195.75,195.69,23.776884]
[1736318099453,0.12549,195.75,195.65,41.78092917]
[1736318099652,0.12549,195.75,195.66,23.776884]
[1736318100459,0.12549,195.75,195.65,41.78092917]
[1736318100639,0.12549,195.75,195.68,136.52549]
[1736318100962,1.6379,195.78,195.7,64.91692416]
[1736318101161,1.6379,195.78,195.7,23.902374]
[1736318101540,0.12549,195.77,195.72,23.776884]
[1736318102537,0.12549,195.77,195.71,23.776884]
[1736318103836,0.12549,195.77,195.7,0.89167799]
[1736318104146,20.0,195.76,195.6,177.41455016]
[1736318104468,0.12549,195.77,195.6,136.4]
[1736318104469,0.12549,195.71,195.6,136.4]
[1736318104650,0.12549,195.66,195.58,136.4]
[1736318104856,1.5994,195.65,195.55,136.4]
[1736318105051,0.12549,195.64,195.5,177.41455016]
[1736318105261,20.12549,195.64,195.49,136.4]
[1736318105770,20.12549,195.64,195.47,41.01455016]
[1736318105771,0.12549,195.64,195.53,41.01455016]
[1736318106061,20.12549,195.64,195.53,136.4]
[1736318106267,20.12549,195.64,195.5,41.01455016]
[1736318106463,0.12549,195.62,195.52,23.776884]
[1736318106682,0.12549,195.62,195.51,23.902374]
[1736318106844,0.12549,195.62,195.5,41.78150183]
[1736318107046,0.12549,195.64,195.5,0.76695167]
[1736318107243,0.12549,195.64,195.51,64.91692416]
[1736318107456,0.12549,195.64,195.52,0.76684549]
[1736318107652,0.12549,195.64,195.53,23.902374]
[1736318107849,0.12549,195.64,195.53,23.776884]
[1736318108055,0.12549,195.62,195.48,41.78150032]
[1736318108268,0.12549,195.62,195.49,41.14004016]
[1736318108450,0.12549,195.62,195.51,0.12549]
[1736318108653,0.12549,195.62,195.51,23.902374]
[1736318109059,0.12549,195.64,195.53,23.902374]
[1736318109242,0.12549,195.64,195.53,0.12549]
[1736318109657,0.12549,195.62,195.48,41.78142939]
[1736318109874,0.12549,195.62,195.48,0.76687923]
[1736318110070,0.12549,195.6,195.46,136.4]
[1736318110250,0.12549,195.6,195.47,0.76712885]
[1736318110458,0.12549,195.55,195.42,41.01455016]
[1736318110772,0.12549,195.55,195.48,23.902374]
[1736318110947,6.1404,195.59,195.5,64.91692416]
[1736318111148,6.1404,195.59,195.52,23.902374]
[1736318111344,7.7398,195.65,195.54,23.776884]
[1736318111590,7.7398,195.65,195.56,23.776884]
[1736318111751,7.7398,195.65,195.57,0.12549]
[1736318112067,0.12549,195.64,195.57,0.12549]
[1736318112378,0.12549,195.64,195.58,0.76672643]
[1736318112769,0.12549,195.64,195.57,24.66906563]
[1736318113269,10.0,195.78,195.6,23.902374]
[1736318113270,7.875,195.72,195.6,23.902374]
[1736318113453,0.12549,195.68,195.57,177.41455016]
[1736318113659,0.12549,195.68,195.6,177.41455016]
[1736318113989,0.12549,195.68,195.62,23.902374]
[1736318114162,7.875,195.72,195.65,0.12549]
[1736318114474,7.875,195.72,195.67,0.12549]
[1736318114682,7.875,195.72,195.66,23.776884]
[1736318114970,0.12549,195.71,195.68,23.776884]
[1736318115173,5.0,195.76,195.7,23.776884]
[1736318115369,5.0,195.76,195.71,0.12549]
[1736318115575,5.0,195.76,195.68,136.4]
[1736318115785,5.0,195.76,195.69,0.76628781]
[1736318116079,5.0,195.76,195.7,23.902374]
[1736318116374,5.0,195.76,195.72,23.776884]
[1736318116774,5.0,195.76,195.73,0.12549]
[1736318116959,5.0,195.76,195.75,0.12549]
[1736318117162,5.12549,195.76,195.75,0.12549]
[1736318117676,0.12549,195.75,195.73,23.902374]
[1736318117882,0.12549,195.75,195.74,0.12549]
[1736318118051,0.12549,195.75,195.73,23.776884]
[1736318118256,0.12549,195.75,195.71,136.4]
[1736318118453,0.12549,195.75,195.69,41.01455016]
[1736318118676,0.12549,195.75,195.71,41.01455016]